Cogmind - Beta 15 @@@ ROGUE MODE // 2025.05.18 @ 20:53:34 Player: saltine Result: System corrupted Performance ------------- Evolutions (3) 1500 Regions Visited (9) 1800 Robots Destroyed (75) 375 Value Destroyed (2306) 2306 Prototype IDs (216) 4320 Alien Tech Used (0) 0 Bonus (3370) 3370 TOTAL SCORE: 13671 Bonus ------- Follower Combat Kills 70 Met Data Miner 300 Used Data Conduit 3000 Cogmind --------- Core Integrity 0/700 Matter 111/300 Energy 75/290 System Corruption 100% Temperature Cool (35) Movement Walking (260) Ox2 Location -6/Proximity Caves Parts ------- > --- POWER (1) -------- Improved Deuterium Engine > --- PROPULSION (5) --- Enhanced Flexi-carbon Leg Enhanced Flexi-carbon Leg > --- UTILITY (4) ------ Improved Cooling System Huge Storage Unit Transmission Jammer Layered Medium Armor Plating > --- WEAPON (3) ------- Neutron Cannon Heavy Rocket Launcher > --- INVENTORY (25) --- Reinforced Deuterium Engine Armored Huge Wheel Xenon Bombardment Thruster Advanced Heat Sink Advanced Energy Well (500) Medium Matter Pod (100) Core Analyzer Hardened Heavy Armor Plating Improved Light Armor Plating Experimental Thermal Shield Hardlight Generator Heavy Riot Gun Ion Cannon Assault Cannon Heavy Assault Cannon Gauss Cannon Shock Bomb Launcher Heavy Missile Launcher Plasma Cutter Multitool Peak State ------------ > --- POWER ------------ Antimatter Reactor > --- PROPULSION ------- Armored Treads Enhanced Flexi-carbon Leg Enhanced Flexi-carbon Leg Enhanced Flexi-carbon Leg Enhanced Flexi-carbon Leg > --- UTILITY ---------- Huge Storage Unit Layered Medium Armor Plating Layered Medium Armor Plating Experimental Thermal Shield > --- WEAPON ----------- Plasma Cannon Neutron Cannon Shock Bomb Launcher > --- INVENTORY -------- Micro Nuclear Core Armored Huge Wheel Xenon Bombardment Thruster Advanced Heat Sink Improved Cooling System Advanced Energy Well Medium Matter Pod Seismic Detector Core Analyzer Transmission Jammer Hardened Heavy Armor Plating Improved Light Armor Plating Hardlight Generator Heavy Riot Gun Ion Cannon Assault Cannon Heavy Assault Cannon Gauss Cannon Heavy Rocket Launcher Heavy Missile Launcher Plasma Cutter Multitool [Rating: 80] Favorites ----------- Power Micro Nuclear Core Engine Ion Engine Power Core Micro Nuclear Core Reactor Antimatter Reactor Propulsion Light Treads Treads Light Treads Leg Enhanced Flexi-carbon Leg Wheel Wheel Utility Seismic Detector Device Seismic Detector Storage Huge Storage Unit Processor Advanced Visual Processing Unit Hackware Hacking Suite Protection Hardened Heavy Armor Plating Weapon Enhanced Autogun Energy Gun Small Laser Energy Cannon Plasma Cannon Ballistic Gun Enhanced Autogun Ballistic Cannon Gauss Cannon Launcher Heavy Missile Launcher Special Weapon Mining Laser Build | -11 -10 -10 -10 -8 -7 -7 -7 -7 -6 ------- Run | Yrd Mat Min Sub Mat Fac Low Low Dat Pro Slots Evolved 6 | . . . . 4 2 . . . . Power . | . . . . . . . . . . Propulsion 3 | . . . . 3 . . . . . Utility 2 | . . . . 1 1 . . . . Weapon 1 | . . . . . 1 . . . . Parts Attached 68 | 1 10 . 4 25 4 2 4 16 2 Power 6 | . . . 1 2 1 . . 1 1 Engine 4 | . . . 1 2 . . . . 1 Core 1 | . . . . . 1 . . . . Reactor 1 | . . . . . . . . 1 . Propulsion 19 | . 3 . . 10 . . 1 5 . Treads 10 | . 2 . . 7 . . 1 . . Leg 4 | . . . . . . . . 4 . Wheel 5 | . 1 . . 3 . . . 1 . Hover . | . . . . . . . . . . Flight . | . . . . . . . . . . Utility 23 | 1 4 . 1 5 2 . 2 8 . Device 10 | 1 1 . . 2 . . 2 4 . Storage 5 | . 2 . 1 . . . . 2 . Processor 1 | . . . . . 1 . . . . Hackware 1 | . . . . . 1 . . . . Protection 6 | . 1 . . 3 . . . 2 . Artifact . | . . . . . . . . . . Weapon 20 | . 3 . 2 8 1 2 1 2 1 Energy Gun 3 | . 1 . 1 1 . . . . . Energy Cannon 4 | . . . 1 . . 1 1 1 . Ballistic Gun 4 | . . . . 4 . . . . . Ballistic Cannon 4 | . 1 . . 2 1 . . . . Launcher 4 | . . . . 1 . 1 . 1 1 Special Weapon 1 | . 1 . . . . . . . . Impact Weapon . | . . . . . . . . . . Slashing Weapon . | . . . . . . . . . . Piercing Weapon . | . . . . . . . . . . Special Melee Weapon . | . . . . . . . . . . Unidentified Prototypes 1 | . . . . 1 . . . . . Corrupted Parts 15 | . . . . 3 . . . 12 . System Corruption 109 | . . . . 11 . . . 98 . Parts Lost 27 | . . 1 1 13 . . . 5 7 Power 4 | . . . 1 2 . . . . 1 Propulsion 14 | . . . . 8 . . . 3 3 Utility 4 | . . 1 . 1 . . . . 2 Weapon 5 | . . . . 2 . . . 2 1 Highest Loss Streak 7 | . . 1 1 7 . . . 5 4 To Critical Strikes 1 | . . . . . . . . . 1 Average Backups 17 | 6 8 11 14 17 21 20 21 20 21 Power . | 1 1 1 . . . 1 1 1 1 Propulsion 3 | 4 4 6 5 . 2 3 2 1 2 Utility 5 | . . 2 3 6 7 7 8 8 9 Weapon 6 | 1 2 2 3 8 9 7 7 7 7 Tool/Special . | . . . . . . . . . . Unused Backups 20 | . 2 . 2 3 5 . . . 8 Power . | . . . . . . . . . . Propulsion 4 | . . . 2 1 . . . . 1 Utility 6 | . 2 . . . 1 . . . 3 Weapon 8 | . . . . 2 4 . . . 2 Tool/Special 2 | . . . . . . . . . 2 Average Slot Usage (%) 93 | . 100 99 99 83 89 92 94 90 92 Engine 6 | . 14 14 13 8 2 . . 2 . Core 2 | . . . . . 4 7 7 3 . Treads 31 | . 11 28 28 35 38 38 38 24 3 Leg 2 | . 10 . . . . . . 8 28 Wheel 1 | . 6 . . 3 . . . . . Device 9 | . 12 13 13 5 7 6 7 9 14 Storage 9 | . 14 14 14 9 7 7 7 7 7 Processor 3 | . . . . . 6 7 7 1 . Protection 2 | . 1 . . 6 . . 1 7 7 Energy Gun 3 | . 5 7 8 4 . . . . . Energy Cannon 3 | . . . 5 1 . 2 6 9 15 Ballistic Gun 8 | . 14 14 14 3 7 7 7 3 . Ballistic Cannon 5 | . 8 6 . 4 4 7 7 3 3 Launcher 1 | . . . . . . 4 . 3 3 Peak Build Rating 80 | 7 8 8 13 37 39 44 47 80 77 Average Rating 28 | 6 7 7 9 28 37 40 41 50 70 On Entrance 27 | 6 7 8 8 10 37 39 40 43 72 Naked Turns . | . . . . . . . . . . Heaviest Build 137 | 13 92 30 33 127 107 106 107 137 130 Greatest Support 112 | 20 40 40 40 100 100 100 100 112 112 Greatest Overweight (x) 9 | . 9 . . 1 1 1 1 4 1 Average Overweight (x) . | . 2 . . . . 1 1 1 1 Largest Inventory Capacity 25 | 8 25 15 15 25 25 25 25 25 25 Average Capacity 21 | 8 17 15 15 20 25 25 25 25 25 Most Carried 25 | 7 12 12 15 25 25 25 25 25 25 Average Carried 19 | 6 8 11 14 17 24 24 24 24 24 Final Capacity 25 | 8 15 15 15 25 25 25 25 25 25 Final Carried 25 | 7 12 11 15 25 25 25 25 25 23 Class Distribution -------------------- 34% | Mutant 28% | Scavenger-Skirmisher 26% | Scavenger-Mutant 10% | Scavenger-Tank Dominant Class ---------------- Mutant | -10/Materials Mutant | -10/Mines Mutant | -10/Subcaves Scavenger-Mutant | -8/Materials Scavenger-Mutant | -7/Factory Scavenger-Skirmisher | -7/Lower Caves Scavenger-Skirmisher | -7/Lower Caves Scavenger-Tank | -7/Data Miner Scavenger-Tank | -6/Proximity Caves Resources | -11 -10 -10 -10 -8 -7 -7 -7 -7 -6 ----------- Run | Yrd Mat Min Sub Mat Fac Low Low Dat Pro Matter Collected 2141 | 226 175 33 187 686 55 263 161 255 100 Remotely . | . . . . . . . . . . Salvage Created 2374 | 129 178 22 162 983 51 84 91 425 249 Parts 157 | 12 11 3 16 68 2 11 7 22 5 Haulers Intercepted 4 | . 1 . . 2 1 . . . . Recyclers Shooed 3 | 1 . 1 . 1 . . . . . Parts Field Recycled . | . . . . . . . . . . Retrieved Matter . | . . . . . . . . . . Parts Self-Destructed 24 | . . . 10 . . 9 4 . 1 Prevented . | . . . . . . . . . . Kills | -11 -10 -10 -10 -8 -7 -7 -7 -7 -6 ------- Run | Yrd Mat Min Sub Mat Fac Low Low Dat Pro Combat Hostiles Destroyed 55 | . 6 2 4 18 . 8 5 4 8 Guns 22 | . 5 2 3 10 . 1 1 . . Cannons 7 | . 1 . 1 3 . . . . 2 AOE 20 | . . . . 5 . 7 3 . 5 Classes Destroyed 16 | 2 3 1 2 6 . . . . 2 Worker 4 | . . . . 4 . . . . . Builder 5 | . . 2 . 3 . . . . . Tunneler 3 | 3 . . . . . . . . . Hauler 4 | . 1 . . 2 1 . . . . Recycler 4 | 1 . . . 3 . . . . . Drone 1 | . . . . . . . . . 1 Swarmer 21 | . 3 2 . 4 . 8 4 . . Grunt 10 | . 3 . . 4 . . . . 3 Brawler 3 | . . . . 1 . . . . 2 Duelist 1 | . . . . . . . . . 1 Sentry 5 | . . . . 4 . . . . 1 Specialist 2 | . . . . 2 . . . . . Hunter 3 | . . . . 2 . . 1 . . Heavy 1 | . . . . 1 . . . . . Enhanced Grunt 4 | . . . . . . . . 4 . Artisan 1 | . . . 1 . . . . . . Subdweller 4 | . . . 4 . . . . . . Best Kill Streak 5 | 2 3 3 2 4 1 4 4 3 5 Combat Bots Only 5 | . 3 2 2 4 . 4 4 3 5 Max Kills in Single Turn 3 | 1 2 1 1 2 1 2 3 1 3 Gunslinging 1 | . 1 . . . . . . . . Exploded 3 | . . . . 2 . 2 3 . 3 Melee . | . . . . . . . . . . Uniques/NPCs Destroyed . | . . . . . . . . . . Combat | -11 -10 -10 -10 -8 -7 -7 -7 -7 -6 -------- Run | Yrd Mat Min Sub Mat Fac Low Low Dat Pro Hostile Shots Fired 375 | . 41 24 17 142 . 17 32 37 65 Missed 102 | . 12 6 6 39 . 4 5 15 15 Hits 273 | . 29 18 11 103 . 13 27 22 50 Melee 7 | . . . . . . . . . 7 Projectile 266 | . 29 18 11 103 . 13 27 22 43 Critical Strikes 13 | . 2 . 1 5 . . . . 5 Part Disruptions 1 | . . . . . . . . 1 . Damage Taken 5463 | . 291 153 237 1750 42 326 414 1016 1234 Core 474 | . 84 14 51 173 . 17 10 48 77 Absorbed by Shields . | . . . . . . . . . . Ignored by Resistances 36 | . . . . 36 . . . . . Core Remaining (%) 69 | 100 . . 40 68 . . . . . Volleys Fired 227 | 16 24 8 19 90 1 10 14 17 28 Largest 3 | 2 2 2 2 2 2 2 2 1 3 Hottest 210 | 60 100 60 100 155 75 80 69 69 210 Shots Fired 352 | 32 47 16 34 120 2 11 21 17 52 Gun 189 | 32 32 15 26 75 1 1 7 . . Cannon 134 | . 14 1 8 42 1 6 13 4 45 Launcher 28 | . . . . 3 . 4 1 13 7 Special 1 | . 1 . . . . . . . . Kinetic 174 | 16 37 9 15 64 2 4 14 . 13 Thermal 125 | 16 10 7 19 38 . 3 . . 32 Explosive 12 | . . . . . . 4 1 . 7 Electromagnetic 41 | . . . . 18 . . 6 17 . Robot Hit Streak 11 | 7 11 1 9 9 5 1 4 6 5 Robot Miss Streak 5 | 4 3 3 2 4 . 1 2 2 5 Penetration Max 1 | . . . . 1 . . 1 . . Secondary Targets 1 | . 1 . . . . . . . . Max Gunslinging Chain 1 | . 1 . . . . . . . . Shots Hit Robots 194 | 18 25 6 23 77 2 1 13 7 22 Core Hits 113 | 8 13 2 9 39 1 6 5 12 18 Critical Kills 1 | . . . . . . . . . 1 Critical Parts Destroyed . | . . . . . . . . . . Critical Strikes 6 | . . . . 2 1 . 1 . 2 Meltdown 1 | . . . . . . . . . 1 Blast 5 | . . . . 2 1 . 1 . 1 Melee Attacks . | . . . . . . . . . . Impact . | . . . . . . . . . . Slashing . | . . . . . . . . . . Piercing . | . . . . . . . . . . Sneak Attacks . | . . . . . . . . . . Combat Hostiles . | . . . . . . . . . . Follow-up Attacks . | . . . . . . . . . . Damage Inflicted 6961 | 167 309 92 339 2641 57 599 611 602 1544 Guns 1675 | 167 191 55 176 1006 14 16 50 . . Cannons 2452 | . 108 20 163 1058 43 . 326 18 716 Explosions 2720 | . . . . 498 . 583 235 576 828 Melee . | . . . . . . . . . . Ramming 114 | . 10 17 . 79 . . . 8 . Kinetic 2483 | 70 217 29 98 1593 57 16 223 . 180 Thermal 1827 | 97 82 46 241 639 . . . 186 536 Explosive 1646 | . . . . . . 583 235 . 828 Electromagnetic 891 | . . . . 330 . . 153 408 . Impact . | . . . . . . . . . . Slashing . | . . . . . . . . . . Piercing . | . . . . . . . . . . Highest Corruption 100 | . . . . 16 . . . 98 100 Average Corruption 27 | . . . . 11 . . . 66 98 Corruption Purged . | . . . . . . . . . . Corruption Blocked . | . . . . . . . . . . Effects 83 | . . . . 49 . . . 7 27 Message Errors 15 | . . . . 11 . . . 2 2 Matter Fused 20 | . . . . 14 . . . 3 3 Heat Flow Errors 9 | . . . . 7 . . . 1 1 Energy Discharges 8 | . . . . 4 . . . 1 3 Parts Rejected 3 | . . . . 3 . . . . . Parts Fused 1 | . . . . 1 . . . . . Data Loss (minor) 8 | . . . . 4 . . . . 4 Misfires 2 | . . . . 2 . . . . . Misdirections 3 | . . . . . . . . . 3 Weapon Failures 14 | . . . . 3 . . . . 11 Overload Shots . | . . . . . . . . . . Overflow Damage 250 | . . . . 120 . 88 5 . 37 Projectiles 146 | . . . . 118 . . 5 . 23 Explosions 104 | . . . . 2 . 88 . . 14 Melee . | . . . . . . . . . . Knockbacks 2 | . . 1 . . . . . . 1 Impact . | . . . . . . . . . . Kinetic 2 | . . 1 . . . . . . 1 Secondary . | . . . . . . . . . . Self-Inflicted Damage 316 | . 5 . . 29 . 131 21 . 130 Shots 8 | . . . . 1 . 3 1 . 3 Rammed 12 | . 1 3 . 7 . . . 1 . Targets Rammed 17 | . 1 5 . 10 . . . 1 . Kicked . | . . . . . . . . . . Crushed 5 | . . 2 . 3 . . . . . Highest Temperature 316 | 60 60 67 247 316 3 78 163 245 230 Average Temperature 79 | 32 19 41 65 102 2 40 79 131 60 Received Heat Transfer 1183 | . 36 . 292 495 . . . . 360 Effects 3 | . . . . 3 . . . . . Interference 3 | . . . . 3 . . . . . Siege Activations . | . . . . . . . . . . Martial Activations . | . . . . . . . . . . Shielding Activations . | . . . . . . . . . . Robots Disrupted . | . . . . . . . . . . Combat Hostiles . | . . . . . . . . . . Robots Corrupted 5 | . . . . . . . 1 4 . Combat Hostiles 5 | . . . . . . . 1 4 . Parts Fried 4 | . . . . 2 . . . 2 . Impact Corruptions 1 | . . . . 1 . . . . . Robots Melted 1 | . . . . . . . . . 1 Combat Hostiles 1 | . . . . . . . . . 1 Parts Melted 3 | . . . . 3 . . . . . Heat Transferred 2446 | 225 175 100 371 1025 . . . 250 300 Parts Sabotaged . | . . . . . . . . . . Parts Stolen . | . . . . . . . . . . Parts Stripped . | . . . . . . . . . . Power Chain Reactions 4 | . . . . 1 . . . 3 . Alert | -11 -10 -10 -10 -8 -7 -7 -7 -7 -6 ------- Run | Yrd Mat Min Sub Mat Fac Low Low Dat Pro Maximum Alert Level . | . . . . . . . . . . Low Security (%) 100 | 100 100 100 . 100 100 . . . . Level 1 . | . . . . . . . . . . Level 2 . | . . . . . . . . . . Level 3 . | . . . . . . . . . . Level 4 . | . . . . . . . . . . Level 5 . | . . . . . . . . . . High Security . | . . . . . . . . . . Max Security . | . . . . . . . . . . Peak Influence 150 | 5 70 40 . 150 64 . . . . Initial 64 | . 3 . . . 64 . . . . Average 28 | 3 16 3 . 62 6 . . . . Influence Increases 1450 | 20 174 60 42 686 13 180 120 . 155 Destroy 0b10 Robot/C 960 | . 120 40 40 360 . 160 100 . 140 Destroy 0b10 Robot/NC 105 | 20 5 10 . 60 5 . . . 5 Destroy Leader 198 | . 32 10 . 104 2 20 20 . 10 Allied During Kill 2 | . . . 2 . . . . . . Successful Hack 18 | . . . . 12 6 . . . . Disable Machine 30 | . . . . 30 . . . . . Destroy Structure 62 | . 2 . . 60 . . . . . Lose Combat Pursuer 75 | . 15 . . 60 . . . . . Influence Decreases 1395 | 15 179 60 42 544 155 180 66 54 100 Entered New Map 134 | . 2 . . . 78 . . 54 . Time Decay 1080 | 15 177 50 42 423 77 180 66 . 50 Lost Part 181 | . . 10 . 121 . . . . 50 Squads Dispatched 8 | . 1 1 . 4 2 . . . . Investigation 3 | . 1 . . 2 . . . . . Extermination 2 | . . . . . 2 . . . . Reinforcement 2 | . . . . 2 . . . . . Assault 1 | . . 1 . . . . . . . Garrison . | . . . . . . . . . . Intercept . | . . . . . . . . . . Searches Triggered . | . . . . . . . . . . Construction Impeded . | . . . . . . . . . . Haulers Reinforced . | . . . . . . . . . . Active Scanning Responses . | . . . . . . . . . . Cargo Convoy Interrupts . | . . . . . . . . . . Stealth | -11 -10 -10 -10 -8 -7 -7 -7 -7 -6 --------- Run | Yrd Mat Min Sub Mat Fac Low Low Dat Pro Distress Signals 7 | . 2 . . 4 . . . . 1 Communications Jammed 3 | . . . . . . . . . 3 Distress Signals . | . . . . . . . . . . Times Spotted 93 | . 13 3 7 33 6 8 5 4 14 Peak Tracking Total 7 | . 3 3 2 5 2 4 3 3 7 Tactical Retreats 4 | . 1 . . 3 . . . . . Traps | -11 -10 -10 -10 -8 -7 -7 -7 -7 -6 ------- Run | Yrd Mat Min Sub Mat Fac Low Low Dat Pro Traps Triggered 7 | . 1 . . 5 1 . . . . Indirectly . | . . . . . . . . . . Trap Hack Attempts . | . . . . . . . . . . Triggered . | . . . . . . . . . . Disarmed . | . . . . . . . . . . Reprogrammed . | . . . . . . . . . . Reused . | . . . . . . . . . . Traps Extracted . | . . . . . . . . . . Installed . | . . . . . . . . . . Triggered . | . . . . . . . . . . Machines | -11 -10 -10 -10 -8 -7 -7 -7 -7 -6 ---------- Run | Yrd Mat Min Sub Mat Fac Low Low Dat Pro Machines Disabled 3 | . . . . 2 . . . . 1 Max in Single Turn 1 | . . . . 1 . . . . 1 Machines Repaired . | . . . . . . . . . . Machines Dismantled . | . . . . . . . . . . Machines Sabotaged . | . . . . . . . . . . Overloaded Fab Kills . | . . . . . . . . . . Hacking | -11 -10 -10 -10 -8 -7 -7 -7 -7 -6 --------- Run | Yrd Mat Min Sub Mat Fac Low Low Dat Pro Machines Accessed 20 | . 3 . . 7 5 . 1 4 . Terminals 9 | . 2 . . 5 2 . . . . Fabricators 3 | . . . . . 3 . . . . Repair Stations . | . . . . . . . . . . Recycling Units 2 | . 1 . . 1 . . . . . Scanalyzers 1 | . . . . 1 . . . . . Garrison Access . | . . . . . . . . . . Total Hacks 62 | . 6 . . 15 14 . 1 26 . Successful 37 | . . . . 4 6 . 1 26 . Failed 25 | . 6 . . 11 8 . . . . Catastrophic 4 | . 1 . . 3 . . . . . Database Lockouts . | . . . . . . . . . . Manual 14 | . 4 . . 4 6 . . . . Terminals 21 | . 4 . . 11 6 . . . . Fabricators 8 | . . . . . 8 . . . . Repair Stations . | . . . . . . . . . . Recycling Units 5 | . 2 . . 3 . . . . . Scanalyzers 1 | . . . . 1 . . . . . Garrison Access . | . . . . . . . . . . Terminal Hacks 31 | . . . . 2 2 . 1 26 . Record 11 | . . . . . . . . 11 . Part Schematic 8 | . . . . . . . . 8 . Robot Schematic 4 | . . . . . . . . 4 . Prototype ID Bank 3 | . . . . . . . . 3 . Open Door 1 | . . . . . . . 1 . . Branch Access Points 2 | . . . . 1 1 . . . . Emergency Access Points 1 | . . . . 1 . . . . . Registered Components 1 | . . . . . 1 . . . . Fabricator Hacks 2 | . . . . . 2 . . . . Network Status 1 | . . . . . 1 . . . . Build 1 | . . . . . 1 . . . . Repair Station Hacks . | . . . . . . . . . . Recycling Unit Hacks 1 | . . . . 1 . . . . . Retrieve Components 1 | . . . . 1 . . . . . Scanalyzer 1 | . . . . 1 . . . . . Insert Component 1 | . . . . 1 . . . . . Garrison Access Hacks . | . . . . . . . . . . Unauthorized Hacks 2 | . . . . . 2 . . . . Terminals 1 | . . . . . 1 . . . . Track 1 | . . . . . 1 . . . . Fabricators 1 | . . . . . 1 . . . . Prioritize 1 | . . . . . 1 . . . . Repair Stations . | . . . . . . . . . . Recycling Units . | . . . . . . . . . . Scanalyzers . | . . . . . . . . . . Garrison Access . | . . . . . . . . . . Data Cores Recovered . | . . . . . . . . . . Used . | . . . . . . . . . . Hacking Detections 13 | . 3 . . 6 4 . . . . Full Trace Events 2 | . 1 . . 1 . . . . . Feedback Events . | . . . . . . . . . . Feedback Blocked . | . . . . . . . . . . Robot Schematics Acquired 4 | . . . . . . . . 4 . Robots Built 3 | . . . . . 3 . . . . Authchips . | . . . . . . . . . . Time 116 | . . . . . 116 . . . . Total Robot Build Rating 9 | . . . . . 9 . . . . Part Schematics Acquired 8 | . . . . . . . . 8 . Parts Built . | . . . . . . . . . . Authchips . | . . . . . . . . . . Time . | . . . . . . . . . . Total Part Build Rating . | . . . . . . . . . . Parts Repaired . | . . . . . . . . . . Time . | . . . . . . . . . . Parts Recycled . | . . . . . . . . . . Recycled Matter . | . . . . . . . . . . Retrieved Matter . | . . . . . . . . . . Retrieved Components . | . . . . . . . . . . Parts Scanalyzed . | . . . . . . . . . . Part Schematics Acquired . | . . . . . . . . . . Parts Damaged . | . . . . . . . . . . Bothacking | -11 -10 -10 -10 -8 -7 -7 -7 -7 -6 ------------ Run | Yrd Mat Min Sub Mat Fac Low Low Dat Pro Used RIF Installer . | . . . . . . . . . . Robots Hacked . | . . . . . . . . . . Non-combat . | . . . . . . . . . . Combat . | . . . . . . . . . . Robot Hacks Applied . | . . . . . . . . . . Relay Couplers Released . | . . . . . . . . . . Fabnet Peak Effective % . | . . . . . . . . . . Robots Rewired . | . . . . . . . . . . Allies Hacked 1 | . . . . . 1 . . . . Hacks Repelled . | . . . . . . . . . . Allies | -11 -10 -10 -10 -8 -7 -7 -7 -7 -6 -------- Run | Yrd Mat Min Sub Mat Fac Low Low Dat Pro Total Allies 4 | . . 1 . . 3 . . . . Largest Group 3 | . . 1 1 . 3 . . . . Highest-Rated Group 48 | . . 31 31 . 48 . . . . Highest-Rated Ally 31 | . . 31 31 . 16 . . . . Total Orders . | . . . . . . . . . . Ally Attacks 23 | . . . 13 . 10 . . . . Total Damage 296 | . . . 207 . 89 . . . . Kills 3 | . . . 3 . . . . . . Allies Corrupted . | . . . . . . . . . . Allies Melted . | . . . . . . . . . . Intel | -11 -10 -10 -10 -8 -7 -7 -7 -7 -6 ------- Run | Yrd Mat Min Sub Mat Fac Low Low Dat Pro Active Infowar (turns) 6549 | 87 597 639 1179 376 744 1340 1158 223 206 Optics 3348 | . . . . . 744 1340 1158 106 . Seismic 6278 | 87 597 639 1179 376 689 1318 1110 223 60 Jamming 341 | . . . . . . . 135 . 206 Robot Analysis Total 151 | . . . . . . . . 151 . Derelict Logs Recovered 8 | . . 2 2 . . 1 2 . 1 Drone Launches . | . . . . . . . . . . Drone Recoveries . | . . . . . . . . . . Exploration | -11 -10 -10 -10 -8 -7 -7 -7 -7 -6 ------------- Run | Yrd Mat Min Sub Mat Fac Low Low Dat Pro Turns Passed 7894 | 99 663 664 1191 1373 767 1340 1158 421 218 Spaces Moved 3553 | 44 344 328 695 523 432 534 449 139 65 Core . | . . . . . . . . . . Treads 3005 | . 66 328 695 430 432 534 449 71 . Legs 321 | 44 164 . . . . . . 48 65 Wheels 227 | . 114 . . 93 . . . 20 . Hover . | . . . . . . . . . . Flight . | . . . . . . . . . . Fastest Speed 93 | 120 120 160 160 93 166 246 246 120 190 Average Speed 191 | 120 154 160 160 194 168 246 246 212 190 Slowest Speed 247 | 120 215 160 160 247 246 246 246 246 190 Overloaded Moves . | . . . . . . . . . . Propulsion Burnouts . | . . . . . . . . . . Robots Hopped . | . . . . . . . . . . Potential Cave-ins . | . . . . . . . . . . Cave-ins Triggered . | . . . . . . . . . . Exploration Rate (%) 44 | 3 53 54 31 54 17 72 76 79 8 Regions Visited 9 Branch Regions 6 Pre-discovered Areas 33 | . . . 1 . . . . 32 . Known Exits Taken 2 | . . . . 1 1 . . . . Unknown Exits Taken 7 | 1 1 1 1 . . 1 1 1 . Scrap Searched 7 | . . . 3 . . 3 1 . . Spaces Dug 72 | . 1 . . 29 . 32 . 1 9 Terrain Destroyed 210 | . 1 . 2 59 . 44 16 11 77 Melee . | . . . . . . . . . . Projectile 51 | . 1 . 2 23 . 3 3 . 19 AOE 159 | . . . . 36 . 41 13 11 58 Terrain Rammed . | . . . . . . . . . . Walls Destroyed . | . . . . . . . . . . Machines Disabled . | . . . . . . . . . . Actions | -11 -10 -10 -10 -8 -7 -7 -7 -7 -6 --------- Run | Yrd Mat Min Sub Mat Fac Low Low Dat Pro Total 4282 | 61 427 449 743 739 477 549 485 247 105 Wait 267 | . 37 106 15 40 15 . 8 44 2 Move 3544 | 43 343 327 694 522 431 533 448 138 65 Hop . | . . . . . . . . . . Pick Up 58 | 1 6 . 7 25 10 1 2 5 1 Fast Attach 28 | 1 . . 1 10 . . 2 14 . Attach 37 | . . 1 1 18 4 1 2 6 4 Detach 20 | . . . . 7 3 1 2 6 1 Swap 45 | . 13 2 3 10 2 3 4 4 4 Drop 39 | . 3 . 3 7 11 . 3 12 . Fire 227 | 16 24 8 19 90 1 10 14 17 28 Melee . | . . . . . . . . . . Ram 1 | . 1 . . . . . . . . Kick . | . . . . . . . . . . Crush 16 | . . 5 . 10 . . . 1 . Escape Stasis . | . . . . . . . . . . Rewire . | . . . . . . . . . . Trap . | . . . . . . . . . . Miscellaneous . | . . . . . . . . . . Route ------- -11/Scrapyard -10/Materials (discovered 3 exits: [*Mat x2] / [*Min]) -10/Mines (discovered 2 exits: [*Mat] / [*Sub]) -10/Subcaves (discovered 2 exits: *Mat x2) -8/Materials (discovered 2 exits: *Fac x2) -7/Factory (discovered 2 exits: *Low x2) -7/Lower Caves -7/Lower Caves (discovered 2 exits: Fac / *Dat) -7/Data Miner -6/Proximity Caves History --------- Turn | Location | Event 1 | -11/Scrapyard | Discovered new exit (range 2) 100 | -11/Scrapyard | Entered Materials 346 | -10/Materials | Discovered new exit (range 3) 372 | -10/Materials | Build established: Mutant 593 | -10/Materials | Discovered new exit (range 14) 601 | -10/Materials | Discovered new exit (range 14) 763 | -10/Materials | Entered Mines 839 | -10/Mines | Met a Derelict bent on vengeance 963 | -10/Mines | Discovered new exit (range 10) 1095 | -10/Mines | Learned 4 Materials zone layouts 1220 | -10/Mines | Learned Materials security intel 1221 | -10/Mines | Met a Derelict testing a Signal Generator 1417 | -10/Mines | Discovered new exit (range 5) 1427 | -10/Mines | Entered Subcaves 1427 | -10/Subcaves | Accompanied by 1 ally 1428 | -10/Subcaves | Approached by a straggling Scientist 1437 | -10/Subcaves | Discovered new exit (range 11) 1497 | -10/Subcaves | Learned 2 Materials zone layouts 1500 | -10/Subcaves | Shifting Twisted Machinery released Piercing Trap 1713 | -10/Subcaves | Ambushed by angry Subdweller bent on revenge 1784 | -10/Subcaves | Discovered new exit (range 7) 1804 | -10/Subcaves | Shifting Twisted Machinery released Sub. Shrapnel Launcher 1849 | -10/Subcaves | A swath of the cavern ceiling suddenly collapsed 1983 | -10/Subcaves | Shifting Twisted Machinery released Sub. Laser 2300 | -10/Subcaves | Ambushed by Subdwellers from Twisted Machinery 2309 | -10/Subcaves | Core integrity fell below 50% 2618 | -10/Subcaves | Entered Materials 2618 | -8/Materials | Evolved 4 slots: Propulsion x3, Utility x1 2619 | -8/Materials | Identified exit to Factory 2956 | -8/Materials | Discovered exit to Factory (range 4) 2969 | -8/Materials | Lost 4 parts (3n1w) 3126 | -8/Materials | Lost 7 parts (2p3n1u1w) 3177 | -8/Materials | System corruption reached 10% 3268 | -8/Materials | Build established: Scavenger-Mutant 3991 | -8/Materials | Entered Factory 3991 | -7/Factory | Evolved 2 slots: Utility x1, Weapon x1 4152 | -7/Factory | Identified exit to Lower Caves 4648 | -7/Factory | Fabricated G-47 Trooper? 4758 | -7/Factory | Entered Lower Caves 4914 | -7/Lower Caves | Learned Factory terminal intel 5050 | -7/Lower Caves | Build established: Scavenger-Skirmisher 5928 | -7/Lower Caves | Discovered new exit (range 9) 6098 | -7/Lower Caves | Entered another Lower Caves area 6111 | -7/Lower Caves | Identified exit to Factory 7242 | -7/Lower Caves | Discovered new exit (range 7) 7256 | -7/Lower Caves | Entered Data Miner 7256 | -7/Data Miner | Discovered new exit (range 6) 7293 | -7/Data Miner | Met Data Miner 7322 | -7/Data Miner | Build established: Scavenger-Tank 7350 | -7/Data Miner | Learned location of Section 7 (-2) 7350 | -7/Data Miner | Acquired the access code to Warlord's prototype stash 7391 | -7/Data Miner | Received God Mode back door access code from Data Miner 7451 | -7/Data Miner | Interfaced with the Data Conduit 7534 | -7/Data Miner | Lost 5 parts (3n2w) 7552 | -7/Data Miner | System corruption reached 10% 7566 | -7/Data Miner | System corruption reached 30% 7605 | -7/Data Miner | Found Corrupted Exp. Thermal Shield 7677 | -7/Data Miner | Entered Proximity Caves 7685 | -6/Proximity Caves | Spotter reported a threat 7685 | -6/Proximity Caves | Spotter reported a threat 7737 | -6/Proximity Caves | Attracted the attention of an 0b10 outpost 7808 | -6/Proximity Caves | Learned Factory terminal intel 7844 | -6/Proximity Caves | Spotter reported a threat 7896 | -6/Proximity Caves | System corrupted Last Messages --------------- 07874_ Machine disabled. 07874_ B-48 Gladiator destroyed. 07874_ Antimatter Reactor destroyed. 07874_ Destroyed Antimatter Reactor. 07880_ The unstable cave ceiling collapses. 07880_ Knocked back. 07880_ System corrupted: Hvy. Rocket Launcher failed to launch. 07881_ Lyr. Medium Armor Plating destroyed. 07882_ System corrupted: Energy discharge (-21). 07883_ Mace fries itself beyond repair. 07883_ Critical hit (Burn: +37). 07890_ G-50 Soldier destroyed. 07890_ N-01 Spotter destroyed. 07892_ The unstable cave ceiling collapses. 07892_ Enh. Flexi-carbon Leg destroyed. 07893_ The unstable cave ceiling collapses. 07895_ Plasma Cannon destroyed. 07895_ System corrupted by crushing effect (+2). 07895_ Knocked back. 07896_ Cogmind system terminally corrupted. Map ----- +----------------------------------------------------+ | ?????????????????????????????????????????????????? | | ?????????????????????????????????????????????????? | | ?????????????????????????????????????????????????? | | ?????????????????????????????????????????????????? | | ????????????#????????????????????????????????????? | | ?????????? ????????????????????????????????????? | | ?????????? ???? ??????????????????????????????? | | ??????????? ???? ??????????????????????????????? | | ??????????? ???# ??????????????????????????????? | | ??????????? ### ??????????????????????????????? | | ???????????? ???????????????????????????????? | | ????????????? ???????????????????????????????? | | ?????????????# ??????#????????????????????????? | | ????????????## #????## ????????????????????????? | | ???????###### #????# ????????????????????????? | | ??????## #????# #????????????????????????? | | ?????## ####?# #????????????????????????? | | ?????? #?# #????????????????????????? | | ?????????????# #?# ###??????????????????????? | | ?????????????# ### #?# # #??????????????????????? | | ??????????##?# #?# ### "#???????????????????????? | | ?????????## ## ### #????#???????????????????? | | ????????## ## ##"##### #???????????????????? | | ????????# ### #;## # #??????#????????????? | | ????????# ##?# = ### #????????????? | | ????????# ##??#### @ #???????????? | | ????????## "#??????# # # ## #???????????? | | ?????????## ##??????# b " ""#???????????????? | | ??????????# #???????# b" ????????????? | | ?????????? #???????# # ????????????? | | ?????????? #??????# % % #???????????? | | ?????????# #??????### ?????????? | | ?????????## ?????????# # ??????????? | | ??????????###?????????# # # ##??????????? | | ??????????????????????# # g% %* #???????????? | | ??????????????????????# # # #???????????? | | ??????????????????????#;# ????????????? | | ?????????????????????? #????????????? | | ??????????????????????#"## # #$= ??????????????? | | ??????????????????????? ?? ###!#????????????????? | | ???????????????????????#?# #?? #????????????????? | | ?????????????????????????# #???#????????????????? | | ?????????????????????????# ????????????????????? | | ?????????????????????????? ????????????????????? | | ?????????????????????????? ?#????????????????????? | | ?????????????????????????????????????????????????? | | ?????????????????????????????????????????????????? | | ?????????????????????????????????????????????????? | | ?????????????????????????????????????????????????? | | ?????????????????????????????????????????????????? | +----------------------------------------------------+ Best States ------------- Heat Dissipation 61 Energy Generation 21 Energy Capacity 325 Matter Stores 302 Matter Capacity 400 Sight Range 20 Terrain Scan Density 10 Jamming Range 12 Armor Coverage 600 Resistance: TH 10 Evasion (%) 55 Recoil Reduction 5 Offensive Hacking 10 Item Schematics ----------------- Combat Drone Bay | -7/Data Miner | Free Lgt. Regenerative Plating | -7/Data Miner | Free Biomechanical Wings | -7/Data Miner | Free Exp. Propulsion Shielding | -7/Data Miner | Free Imp. Heavy Machine Gun | -7/Data Miner | Free Linear Gravjet | -7/Data Miner | Free Adv. Cooling System | -7/Data Miner | Free Variable Charge Gun | -7/Data Miner | Free Robot Schematics ------------------ H-55 Commando | -7/Data Miner | Free O-24 Administrator | -7/Data Miner | Free B-48 Gladiator | -7/Data Miner | Free G-50 Soldier | -7/Data Miner | Free Fabricated ------------ G-47 Trooper | x3 | -7/Factory | Preloaded Repaired ---------- Nothing Alien Tech Used ----------------- None Achievements -------------- None Challenges ------------ None Game ------ Seed FieldthrustMetafieldHumpback Manual? 0 Play Time 00:46:21 Cumulative 415.4 hours Start 2025.05.18 @ 20:06:37 End 2025.05.18 @ 20:53:34 Sessions 1 Manual Loads 0 Difficulty Rogue Special Mode None Game No. 203 Rogue 203 Adventurer 0 Explorer 0 Win Type - Total 17 Types 3/3/6/2/1/0/1/0/0/1 Lore% 88 Gallery% 82 Achievement% 77 Wizard Run 0 Options --------- Layout 0 ASCII 0 Keyboard 0 Movement Arrows Keybinds 0 Fullscreen 2 Font 18/SmallcapsGlow Map View 76x50 Zoom Use 0% Tactical HUD 1 Map Filters NONE Filters NONE Steam 1 RUN: b2d4eaca-4967-485b-b6a1-fe449f0cf65e